bitfinex-derivatives/quotes_ETHF0:USTF0_20250115
["timestamp","ask_amount","ask_price","bid_price","bid_amount"]
[1736953765861,3.2078,3338.7,3337.9,4.6998]
[1736953766061,3.78242587,3338.5,3338.3,0.59912]
[1736953766260,0.59912,3338.4,3337.9,4.6998]
[1736953766467,0.59912,3338.4,3338.2,0.59914]
[1736953766764,3.33533245,3338.8,3337.9,4.6998]
[1736953766765,3.32685821,3338.5,3337.9,4.6998]
[1736953767065,0.59906,3338.8,3338.3,3.2078]
[1736953767265,0.59906,3338.7,3338.5,0.59909]
[1736953767571,3.3870253,3338.7,3338.3,3.2078]
[1736953767863,3.3870253,3338.7,3338.5,0.59909]
[1736953767864,0.59907,3338.7,3338.5,0.59909]
[1736953768059,5.4148,3339.1,3338.6,0.59907]
[1736953768261,5.4148,3339.1,3338.3,3.2078]
[1736953768464,3.46031335,3339.0,3338.3,3.2078]
[1736953768667,0.5991,3338.5,3338.3,3.80692]
[1736953768861,0.59909,3338.6,3338.4,0.59911]
[1736953769160,0.59909,3338.6,3338.3,3.2078]
[1736953769161,0.59911,3338.4,3338.3,3.2078]
[1736953769366,4.05942335,3338.5,3338.3,3.2078]
[1736953769568,3.45052803,3338.4,3338.3,3.2078]
[1736953769763,0.59911,3338.4,3338.3,3.2078]
[1736953770165,4.06623125,3338.4,3338.3,3.2078]
[1736953770364,3.46712125,3338.4,3337.9,3.2078]
[1736953770566,2.207,3339.1,3338.3,3.2078]
[1736953770865,3.2078,3339.5,3339.3,0.59894]
[1736953771073,3.2078,3339.9,3338.9,1.492]
[1736953771265,3.2078,3339.9,3339.1,3.2078]
[1736953771460,0.59891,3339.6,3339.3,0.59894]
[1736953771665,0.59891,3339.6,3338.9,1.492]
[1736953771666,0.59891,3339.6,3339.0,3.2078]
[1736953771966,0.59891,3339.6,3338.9,1.492]
[1736953771967,1.49703,3340.1,3339.4,3.2078]
[1736953772162,1.497,3340.2,3339.2,0.59896]
[1736953772163,0.59895,3339.4,3339.2,0.59896]
[1736953772462,0.59897,3339.2,3339.1,40.8]
[1736953772660,0.44233229,3339.3,3338.6,1.492]
[1736953772870,3.24760436,3339.4,3338.6,1.492]
[1736953773070,8.07369397,3339.6,3338.6,1.492]
[1736953773372,0.599,3339.1,3338.9,0.59901]
[1736953773672,0.599,3339.1,3338.9,0.59902]
[1736953773868,3.2078,3339.6,3338.6,1.492]
[1736953773869,3.35837509,3339.0,3338.6,1.492]
[1736953774059,0.59905,3338.8,3338.6,2.09107]
[1736953774259,0.599,3339.1,3338.9,0.59902]
[1736953774569,3.2078,3339.6,3338.7,3.2078]
[1736953775072,3.41286082,3339.4,3339.3,0.59895]
[1736953775259,0.59895,3339.3,3339.2,0.59896]
[1736953775459,0.59897,3339.3,3338.8,0.59904]
[1736953775765,0.59898,3339.2,3339.0,0.59899]
[1736953775958,3.2078,3339.4,3338.7,3.2078]
[1736953776165,3.80675,3339.4,3339.2,0.59896]
[1736953776369,3.13310977,3339.3,3339.2,3.80677]
[1736953776566,0.59888,3339.8,3339.6,0.59889]
[1736953776873,3.17982607,3339.8,3339.7,0.59888]
[1736953777070,3.17982607,3339.9,3339.8,0.59886]
[1736953777265,6.3562,3340.5,3339.6,3.2078]
[1736953777470,0.59883,3340.0,3339.7,0.59888]
[1736953777770,3.78640459,3340.4,3340.2,0.59878]
[1736953778068,0.59882,3340.1,3340.0,0.59883]
[1736953778374,0.59884,3340.0,3339.8,0.59885]
[1736953778674,3.2078,3340.5,3339.6,3.2078]
[1736953778968,3.38469823,3340.4,3339.6,3.2078]
[1736953779362,3.80655,3340.5,3339.7,1.49721]
[1736953779571,3.80655,3340.5,3339.8,0.59886]
[1736953779871,4.2501,3340.9,3340.1,0.59881]
[1736953780064,0.59873,3340.6,3340.5,0.59873]
[1736953780373,0.59874,3340.5,3340.4,0.59875]
[1736953780676,4.2501,3340.9,3340.2,0.59878]
[1736953780968,3.37086882,3340.8,3340.1,1.49703]
[1736953781172,3.37086882,3340.8,3340.7,0.59869]
[1736953781367,3.2078,3340.9,3340.8,0.59868]
[1736953781567,3.2078,3340.9,3340.7,0.59869]
[1736953781868,3.2078,3340.9,3340.8,0.59868]
[1736953782273,3.2078,3340.9,3340.4,4.6998]
[1736953782474,3.80648,3340.9,3340.4,4.6998]
[1736953782669,3.2078,3340.9,3340.4,4.6998]
[1736953782973,0.5987,3340.7,3340.4,0.59875]
[1736953783174,0.59875,3340.5,3340.3,0.59877]
[1736953783375,3.2078,3340.9,3340.1,1.492]
[1736953783577,3.2078,3340.9,3340.0,3.2078]
[1736953783872,0.59886,3339.9,3339.7,2.09087]
[1736953784070,6.62776216,3340.4,3339.6,5.7633]
[1736953784372,0.59885,3339.9,3339.8,0.59885]
[1736953784568,0.59885,3339.9,3339.8,0.59886]
[1736953784964,0.59888,3339.7,3339.6,3.2078]
[1736953785168,3.2078,3339.8,3338.9,3.2078]
[1736953785672,3.2078,3340.2,3339.1,3.2078]
[1736953785971,3.2078,3340.2,3339.5,3.2078]
[1736953786477,0.59884,3340.0,3339.5,3.2078]
[1736953786676,0.59884,3340.0,3339.9,0.59883]
[1736953786677,0.59883,3340.0,3339.9,0.59883]
[1736953786877,0.59881,3340.1,3340.0,0.59881]
[1736953787073,0.59885,3339.9,3339.8,0.59885]
[1736953787373,3.2078,3340.2,3339.5,3.2078]
[1736953787767,0.59888,3339.8,3339.7,0.59887]
[1736953787973,3.2078,3340.2,3339.5,3.2078]
[1736953788177,0.5989,3339.6,3339.5,3.2078]
[1736953788376,3.2078,3339.8,3339.0,4.6998]
[1736953788571,0.59899,3339.1,3339.0,4.6998]
[1736953788881,3.2078,3339.4,3338.6,3.2078]
[1736953789273,0.59898,3339.2,3339.0,0.59899]
[1736953789579,3.2078,3339.4,3339.0,0.59899]
[1736953789580,0.59895,3339.3,3339.0,0.59899]
[1736953789779,3.2078,3339.4,3338.6,3.2078]
[1736953789973,1.49739,3339.3,3338.6,3.2078]
[1736953790174,4.70519,3339.3,3338.4,1.492]
[1736953790371,4.70519,3339.3,3338.5,0.59909]
[1736953790372,0.59907,3338.7,3338.5,0.59909]
[1736953790771,1.49743,3339.2,3338.2,40.8]
[1736953791171,1.49743,3339.2,3338.1,3.2078]
[1736953791371,0.5991,3338.6,3338.1,3.2078]
[1736953791575,0.5991,3338.5,3338.1,3.2078]
[1736953791877,0.59915,3338.2,3338.1,3.2078]
[1736953792178,3.2078,3338.5,3337.8,40.8]
[1736953792369,0.5992,3337.9,3337.8,40.8]
[1736953792569,0.5992,3337.9,3337.6,3.2078]
[1736953792781,0.59923,3337.8,3337.6,3.80704]
[1736953793078,3.2078,3338.1,3337.6,3.2078]
[1736953793270,4.2405,3338.6,3337.7,1.492]
[1736953793475,3.38514508,3338.5,3337.8,1.49806]
[1736953793875,3.38514508,3338.5,3337.7,1.492]
[1736953794080,0.59911,3338.4,3338.1,0.59917]
[1736953794283,0.59915,3338.2,3338.1,0.59917]
[1736953794483,3.2078,3338.6,3337.6,3.44875564]
[1736953794679,3.2078,3338.6,3337.8,1.491]
[1736953794875,0.59912,3338.4,3337.9,1.491]
[1736953795071,3.2078,3338.6,3337.9,1.491]
[1736953795276,0.59912,3338.4,3337.9,1.491]
[1736953795484,3.32002403,3338.4,3338.3,0.59912]
[1736953795783,0.59911,3338.4,3338.3,0.59912]
[1736953796086,3.32002403,3338.5,3337.9,1.491]
[1736953796383,1.49779,3338.4,3337.7,0.59923]
[1736953796586,0.59924,3337.8,3337.7,1.491]
[1736953797083,0.59931,3337.3,3337.2,3.2078]
[1736953797286,6.51044159,3337.8,3336.8,5.4353]
[1736953797480,1.49811,3337.7,3336.8,4.3326]
[1736953797675,0.59935,3337.1,3337.0,0.59937]
[1736953797876,1.49811,3337.7,3336.9,40.8]
[1736953798185,0.59936,3337.1,3336.9,0.59938]
[1736953798389,3.21093522,3337.3,3336.5,0.59946]
[1736953798390,0.59938,3337.0,3336.5,0.59946]
[1736953798587,3.21093522,3337.3,3336.7,0.59941]
[1736953798884,0.5994,3336.9,3336.7,0.59941]
[1736953799288,3.36613104,3337.2,3336.4,4.6988]
[1736953799489,0.59939,3336.9,3336.7,0.59941]
[1736953799787,1.49815,3337.6,3336.4,4.6988]
[1736953799989,3.41311756,3337.2,3336.5,0.59946]
[1736953800293,3.2078,3337.4,3336.4,3.2078]
[1736953800586,3.2078,3337.4,3336.5,1.492]
[1736953800587,4.70606,3337.4,3336.5,1.492]
[1736953800893,0.59946,3336.5,3336.4,3.2078]
[1736953801081,1.49838,3337.1,3336.4,3.2078]
[1736953801082,0.59944,3336.6,3336.4,3.2078]
[1736953801388,0.59938,3337.0,3336.4,3.2078]
[1736953801694,0.59944,3336.6,3336.4,44.60727]
[1736953801900,1.49833,3337.2,3336.4,44.0078]
[1736953802190,0.59946,3336.5,3336.4,3.2078]
[1736953802379,3.19665253,3336.5,3335.6,3.2078]
[1736953802585,0.59968,3335.3,3335.1,3.2078]
[1736953802989,1.49888,3336.0,3335.1,3.2078]
[1736953803294,3.2078,3336.1,3335.1,3.2078]
[1736953803295,3.18128461,3335.7,3335.1,3.2078]
[1736953803487,3.18128461,3335.7,3334.7,40.8]
[1736953803488,3.2078,3335.6,3334.7,40.8]
[1736953803681,3.2078,3335.6,3334.6,3.2078]
[1736953803882,3.2078,3336.1,3335.4,3.2078]
[1736953804087,3.80734,3336.1,3335.9,0.59956]
[1736953804283,3.2078,3336.1,3335.4,3.2078]
[1736953804596,0.5995,3336.3,3336.0,0.59955]
[1736953804890,0.59953,3336.1,3335.9,0.59956]
[1736953805291,3.2078,3336.6,3335.4,1.1025]
[1736953805498,0.59951,3336.3,3335.5,1.49909]
[1736953805695,3.2078,3336.6,3336.1,3.2078]
[1736953805994,3.18128461,3337.7,3336.2,1.492]
[1736953805995,3.2078,3337.0,3336.2,1.492]
[1736953806194,3.2078,3337.0,3336.4,0.59946]
[1736953806691,3.2078,3337.0,3336.2,1.492]
[1736953806895,3.1420468,3336.5,3335.7,3.2078]
[1736953807105,3.1420468,3336.5,3335.4,2.5945]
[1736953807106,6.3498468,3336.2,3335.4,2.5945]
[1736953807292,6.3498468,3336.2,3334.9,44.60753]
[1736953807293,4.70679,3335.8,3334.9,44.60753]
[1736953807493,0.59972,3335.0,3334.9,3.2078]
[1736953807693,4.68028461,3335.7,3334.5,4.6998]
[1736953807998,3.18128461,3335.7,3334.5,45.4998]
[1736953808194,4.68029461,3335.7,3334.5,45.4998]
[1736953808699,0.59965,3335.5,3335.3,0.59966]
[1736953808996,3.21907492,3335.7,3335.0,3.2078]
[1736953809301,0.59962,3335.6,3335.5,0.59963]
[1736953809500,0.59962,3335.6,3335.4,0.59965]
[1736953809898,0.59953,3336.1,3335.9,0.59956]
[1736953810101,3.2078,3336.2,3335.9,0.59956]
[1736953810392,0.59956,3336.0,3335.8,0.59957]
[1736953810598,3.2078,3336.2,3335.5,40.8]
[1736953810996,0.59962,3335.6,3335.5,40.8]
[1736953811494,3.2078,3336.2,3335.4,3.2078]
[1736953811495,3.3556695,3335.5,3335.4,3.2078]
[1736953811693,3.3556695,3335.5,3335.4,3.80745]
[1736953811902,0.59963,3335.6,3335.4,3.2078]
[1736953812098,0.59963,3335.5,3335.4,3.2078]
[1736953812400,0.59963,3335.5,3334.8,1.492]
[1736953812401,0.59968,3335.3,3334.8,1.492]
[1736953812601,3.2078,3335.5,3334.8,42.292]
[1736953812801,0.59965,3335.4,3334.8,42.292]
[1736953812999,3.2078,3335.1,3334.4,2.1145]
[1736953813296,3.29502186,3336.0,3334.3,3.2078]
[1736953813297,3.2078,3334.7,3334.3,3.2078]
[1736953813698,0.59974,3335.0,3334.3,3.2078]
[1736953813999,3.2078,3335.2,3334.4,1.49959]
[1736953814199,3.27084527,3335.1,3335.0,0.59972]
[1736953814399,3.87056527,3335.1,3334.9,0.59974]
[1736953814595,3.2078,3335.2,3334.3,3.2078]
[1736953814997,3.40907666,3335.1,3334.3,3.2078]
[1736953815203,0.59982,3334.5,3334.3,0.59984]
[1736953815399,0.59983,3334.4,3334.2,41.39986]
[1736953815700,7.88832461,3335.2,3334.2,40.8]
[1736953816006,0.59989,3334.1,3334.0,3.2078]
[1736953816602,0.59994,3333.8,3333.7,2.5665]
[1736953816903,0.59994,3333.8,3333.7,1.493]
[1736953817095,0.59996,3333.7,3333.6,4.2784]
[1736953817292,0.59986,3334.3,3334.1,0.59989]
[1736953817489,1.4995,3334.6,3333.6,4.2784]
[1736953817694,0.59996,3333.7,3333.6,4.2784]
[1736953817897,0.59996,3333.7,3333.6,3.2078]
[1736953818300,1.49972,3334.1,3333.6,3.2078]
[1736953818499,0.59996,3333.7,3333.6,3.2078]
[1736953818800,3.18128461,3334.7,3333.2,4.7008]
[1736953818801,3.2078,3333.8,3333.2,4.7008]
[1736953819403,0.59989,3334.1,3334.0,0.5999]
[1736953819596,3.2078,3334.2,3334.1,0.59989]
[1736953819798,3.2078,3334.2,3333.6,3.2078]
[1736953820100,1.49972,3334.1,3333.3,1.493]
[1736953820401,0.60001,3333.4,3333.3,1.493]
[1736953820601,0.60005,3333.2,3333.1,5.7426]
[1736953820803,1.49995,3333.6,3332.9,1.493]
[1736953820993,6.38908461,3333.7,3332.7,3.2078]
[1736953821205,6.38908461,3333.7,3331.4,10.798]
[1736953821206,0.60007,3333.1,3332.5,3.2078]
[1736953821502,6.47935188,3333.5,3332.3,1.50053]
[1736953821503,3.2078,3333.5,3333.0,0.60008]
[1736953821698,0.59999,3333.6,3332.9,3.2078]
[1736953821903,2.57058,3334.0,3332.9,4.7008]
[1736953821904,3.2078,3333.9,3332.9,4.7008]
[1736953822203,6.57034068,3333.9,3332.9,4.7008]
[1736953822604,3.2078,3333.9,3333.8,0.59994]
[1736953822802,0.59991,3334.0,3333.3,3.2078]
[1736953823003,0.59985,3334.3,3333.8,0.59994]
[1736953823195,0.5999,3334.1,3333.9,0.59991]
[1736953823395,3.16630559,3334.3,3334.1,0.59988]
[1736953823699,0.59988,3334.2,3334.0,41.39989]
[1736953823900,3.2078,3334.4,3334.0,41.39989]
[1736953823901,3.2078,3334.4,3334.0,40.8]
[1736953824206,3.2078,3334.8,3334.1,3.2078]
[1736953824405,0.59972,3335.1,3334.9,0.59974]
[1736953824598,3.2078,3335.4,3334.6,4.6998]
[1736953825109,3.2078,3335.0,3334.1,3.2078]
[1736953825404,0.59982,3334.5,3334.0,40.8]
[1736953825605,3.2078,3335.0,3334.1,3.2078]
[1736953825809,2.99764,3336.2,3334.6,1.4995]
[1736953825810,0.59968,3335.3,3334.6,1.4995]
[1736953826102,6.38908461,3335.7,3334.5,3.2078]
[1736953826300,6.38908461,3335.7,3334.6,1.1425]
[1736953826301,3.22555685,3335.2,3334.6,1.1425]
[1736953826501,3.22555685,3335.2,3334.1,3.2078]
[1736953826502,3.2078,3334.9,3334.1,3.2078]
[1736953826705,1.49941,3334.8,3333.8,1.492]
[1736953826909,1.49959,3334.4,3333.7,0.59996]
[1736953827103,0.59983,3334.5,3333.7,3.2078]
[1736953827304,3.2078,3334.9,3334.1,3.2078]
[1736953827505,1.1347,3335.1,3334.5,3.2078]
[1736953827709,1.1347,3335.1,3334.0,3.2078]
[1736953828009,3.20176272,3335.0,3334.5,3.2078]
[1736953828511,3.2078,3335.3,3334.1,4.70752]
[1736953828807,3.75231661,3335.2,3334.5,4.70734]
[1736953829008,3.15262661,3335.2,3335.1,0.59971]
[1736953829209,1.0665,3335.8,3334.9,3.2078]
[1736953829504,3.15262661,3335.7,3334.9,4.70714]
[1736953829713,0.59968,3335.3,3335.2,0.59968]
[1736953829903,3.17319739,3335.8,3335.0,2.144]
[1736953830104,1.499,3335.7,3335.0,2.144]
[1736953830314,4.68008461,3336.2,3335.0,2.144]
[1736953830506,3.17319739,3335.6,3335.0,2.144]
[1736953830808,6.17886461,3336.2,3334.6,1.492]
[1736953831003,0.59974,3334.9,3334.8,0.59975]
[1736953831203,1.49911,3335.5,3334.6,1.492]
[1736953831506,3.24882173,3335.7,3334.6,2.0918]
[1736953831507,1.49922,3335.3,3334.6,2.0918]
[1736953831811,0.59976,3334.9,3334.8,0.59976]
[1736953832613,1.49885,3336.1,3334.6,1.49949]
[1736953832807,0.59962,3335.7,3334.8,1.4994]
[1736953833013,0.59963,3335.6,3334.7,1.49945]
[1736953833208,3.2078,3336.0,3335.2,3.2078]
[1736953833409,0.59966,3335.4,3335.3,0.59966]
[1736953833809,1.49891,3335.9,3335.2,3.2078]
[1736953834110,1.49891,3335.9,3334.8,40.8]
[1736953834111,3.2078,3335.6,3334.8,44.0078]
[1736953834317,0.59974,3334.9,3334.8,3.80756]
[1736953834704,3.1661552,3335.5,3334.8,3.2078]
[1736953834904,3.2078,3336.0,3334.8,3.2078]
[1736953835217,6.61296798,3336.0,3335.2,3.2078]
[1736953835518,2.99688,3337.0,3336.6,0.59943]
[1736953835519,0.59941,3336.8,3336.6,0.59943]
[1736953835709,3.2078,3337.0,3336.2,1.492]
[1736953836017,3.2078,3337.0,3336.9,0.59938]
[1736953836221,3.2836,3337.5,3336.6,1.4986]
[1736953836514,3.2836,3337.5,3336.5,44.0078]
[1736953836515,3.2078,3338.4,3337.3,3.2078]
[1736953836814,3.33664303,3338.4,3338.3,0.59913]
[1736953837011,3.33664303,3338.4,3338.3,3.2078]
[1736953837212,1.1051,3338.8,3338.3,3.2078]
[1736953837411,1.1051,3338.8,3338.7,3.2078]
[1736953837613,1.70414,3338.8,3338.7,3.2078]
[1736953837808,2.2501,3339.1,3338.7,3.2078]
[1736953838120,1.70395,3339.9,3339.5,0.5989]
[1736953838314,1.1051,3339.9,3339.5,3.2078]
[1736953838818,2.2435,3340.1,3339.5,3.2078]
[1736953838819,0.59884,3340.0,3339.6,0.59889]
[1736953839016,0.59885,3339.9,3339.5,3.80672]
[1736953839218,3.2078,3340.3,3339.7,0.59886]
[1736953839411,0.59879,3340.2,3339.8,0.59885]
[1736953839611,3.75011555,3340.2,3339.8,0.59885]
[1736953839816,3.15132555,3340.2,3339.5,3.2078]
[1736953840017,0.59882,3340.1,3339.7,0.59887]
[1736953840315,3.2078,3340.3,3339.5,3.2078]
[1736953840523,3.80658,3340.3,3339.9,0.59883]
[1736953840812,3.24211186,3340.2,3339.5,3.2078]
[1736953841016,3.2078,3340.3,3340.0,0.59881]
[1736953841218,3.2078,3340.3,3339.5,3.2078]
[1736953841417,0.59885,3339.9,3339.5,3.80671]
[1736953841616,0.59884,3340.0,3339.6,0.59889]
[1736953841813,3.2078,3340.3,3339.7,0.59888]
[1736953841814,3.27870859,3339.8,3339.7,0.59888]
[1736953842116,3.27870859,3339.9,3339.7,0.59888]
[1736953842319,3.2078,3339.9,3339.5,3.2078]
[1736953842524,3.2078,3339.9,3339.2,0.59896]
[1736953842525,0.59891,3339.6,3339.2,0.59896]
[1736953842714,0.59891,3339.6,3339.1,3.2078]
[1736953842715,3.18356263,3339.8,3339.1,3.2078]
[1736953843020,3.18356263,3339.5,3339.2,0.59897]
[1736953843217,0.5989,3339.6,3339.1,3.2078]
[1736953843415,3.18356263,3339.8,3339.3,0.59894]
[1736953843620,0.59888,3339.7,3339.3,0.59894]
[1736953843819,0.59888,3339.7,3339.3,0.59893]
[1736953844122,3.2078,3339.9,3339.1,3.2078]
[1736953844123,3.25504729,3339.6,3339.1,3.2078]
[1736953844422,1.124,3340.0,3339.7,0.59888]
[1736953844621,1.124,3340.0,3339.5,3.2078]
[1736953844622,1.124,3340.0,3339.8,0.59885]
[1736953844817,0.59875,3340.5,3340.1,0.5988]
[1736953845025,0.59877,3340.4,3340.0,0.59882]
[1736953845221,3.32827659,3340.4,3339.5,4.6978]
[1736953845417,4.3153,3340.7,3339.5,3.2078]
[1736953845924,3.23744916,3340.5,3340.4,0.59876]
[1736953846129,3.23744916,3340.6,3340.4,0.59874]
[1736953846320,4.3153,3340.7,3340.3,0.59876]
[1736953846321,4.914,3340.7,3340.3,0.59876]
[1736953846624,1.136,3340.9,3340.5,3.80653]
[1736953846625,0.5987,3340.8,3340.5,3.80653]
[1736953846825,1.136,3340.9,3340.1,3.2078]
[1736953847022,1.4964,3341.6,3340.0,1.49]
[1736953847023,0.5987,3340.7,3340.0,4.6978]
[1736953847221,3.19589066,3340.8,3340.6,3.2078]
[1736953847528,0.59875,3340.5,3340.4,3.2078]
[1736953847723,3.2078,3340.9,3339.6,3.2078]
[1736953848026,3.22152702,3340.5,3339.5,2.6569]
[1736953848219,7.89954163,3340.8,3339.5,2.6569]
[1736953848422,0.59886,3339.9,3339.6,0.59889]
[1736953848616,0.59886,3339.9,3339.3,3.2078]
[1736953848816,3.2078,3340.1,3339.3,3.2078]
[1736953849022,3.11861195,3339.8,3339.3,3.2078]
[1736953849223,3.11861195,3340.0,3339.3,3.2078]
[1736953849426,3.2078,3340.1,3339.3,3.2078]
[1736953849626,0.59882,3340.1,3339.8,0.59886]
[1736953849825,0.59884,3340.0,3339.7,0.59887]
[1736953850127,4.03404672,3340.2,3339.4,0.59893]
[1736953850329,3.43524672,3340.2,3339.7,3.2078]
[1736953850518,3.2078,3340.5,3340.2,0.59879]
[1736953850722,3.2078,3340.5,3339.7,3.2078]
[1736953850723,3.2078,3340.5,3340.4,0.59876]
[1736953850919,3.2078,3341.0,3340.1,3.2078]
[1736953851225,0.59867,3340.9,3340.6,0.59871]
[1736953851427,3.19998979,3340.9,3340.1,3.2078]
[1736953851627,3.2078,3341.0,3340.2,1.49699]
[1736953851827,0.59867,3340.9,3340.7,0.59869]
[1736953852018,3.2078,3341.0,3340.1,3.2078]
[1736953852221,3.80646,3341.0,3340.8,0.59867]
[1736953852419,3.2078,3341.5,3340.9,3.2078]
[1736953852631,0.59861,3341.3,3341.0,0.59865]
[1736953852823,0.59861,3341.3,3341.0,0.29912595]
[1736953853126,0.59861,3341.3,3340.6,1.49]
[1736953853127,3.2078,3341.5,3340.7,40.8]
[1736953853329,0.21972335,3341.1,3341.0,0.59863]
[1736953853832,0.21972335,3341.1,3341.0,0.29910595]
[1736953854233,0.21972335,3341.1,3340.5,3.80653]
[1736953854526,0.21972335,3341.1,3340.5,3.2078]
[1736953854726,0.59869,3340.8,3340.6,0.59872]
[1736953854932,4.70424,3341.5,3340.5,3.2078]
[1736953855127,4.70424,3341.5,3340.1,3.2078]
[1736953855128,3.2078,3341.0,3340.1,3.2078]
[1736953855336,3.2078,3341.0,3340.9,0.59867]
[1736953855531,3.33525355,3340.9,3339.5,4.70506]
[1736953855825,0.59879,3340.2,3340.0,0.59882]
[1736953856025,3.2078,3340.2,3339.4,1.0579]
[1736953856227,3.2078,3340.2,3339.1,3.2078]
[1736953856228,3.38334095,3340.1,3339.1,4.6958]
[1736953856826,0.59886,3339.9,3339.7,0.59888]
[1736953857027,3.38334095,3340.1,3339.1,4.6958]
[1736953857225,0.59889,3339.7,3339.5,0.59891]
[1736953857433,3.27842465,3340.1,3339.1,3.2078]
[1736953857633,3.27842465,3340.1,3340.0,0.59883]
[1736953857830,3.2078,3340.3,3340.2,0.59879]
[1736953858230,3.2078,3340.3,3339.7,1.488]
[1736953858428,5.3713,3340.7,3339.9,3.2078]
[1736953858731,5.3713,3340.7,3340.5,0.59873]
[1736953858732,0.59873,3340.6,3340.5,0.59873]
[1736953858928,3.2078,3340.7,3339.9,3.2078]
[1736953859331,1.70999,3341.4,3341.2,0.59861]
[1736953859531,4.3633,3341.6,3341.0,3.2078]
[1736953859733,3.2078,3341.6,3341.5,0.59856]
[1736953860035,0.59856,3341.5,3341.4,0.59857]
[1736953860235,3.2078,3342.1,3341.1,1.49658]
[1736953860530,0.59851,3341.8,3341.7,0.59852]
[1736953860727,0.59853,3341.7,3341.5,0.59854]
[1736953861030,3.2078,3342.1,3341.0,3.2078]
[1736953861235,0.59863,3341.1,3341.0,3.2078]
[1736953861733,1.49636,3341.6,3340.6,3.2078]
[1736953861932,0.5987,3340.7,3340.6,3.2078]
[1736953862237,0.5987,3340.7,3340.5,1.488]
[1736953862238,3.2078,3341.4,3340.5,1.488]
[1736953862528,0.59872,3340.6,3340.5,1.488]
[1736953862922,3.2078,3341.0,3340.5,1.488]
[1736953863126,0.5986,3341.3,3341.2,0.5986]
[1736953863326,3.2078,3342.1,3341.1,3.2078]
[1736953863622,3.2078,3342.1,3341.9,0.59847]
[1736953863826,3.2078,3342.1,3342.0,0.59847]
[1736953864430,3.2078,3342.1,3341.6,1.488]
[1736953864431,3.2078,3342.6,3341.7,3.2078]
[1736953864637,3.2078,3342.6,3342.3,0.5984]
[1736953864835,0.59844,3342.2,3341.7,3.2078]
[1736953865131,3.22488696,3342.5,3341.7,3.2078]
[1736953865326,3.22488696,3342.5,3341.6,1.488]
[1736953865526,2.99142,3343.1,3341.4,1.488]
[1736953865527,0.59857,3341.5,3341.4,1.488]
[1736953865832,0.59856,3341.5,3341.4,1.488]
[1736953866131,3.2078,3342.5,3341.2,5.8205]
[1736953866323,1.49605,3342.3,3341.2,5.8205]
[1736953866523,1.49604,3342.3,3341.3,0.12039408]
[1736953866726,3.1698897,3342.2,3341.2,5.8205]
[1736953866933,0.59848,3342.0,3341.7,3.2078]
[1736953867134,3.2078,3342.5,3341.8,0.5985]
[1736953867340,4.70376,3342.5,3341.9,0.59849]
[1736953867534,0.59849,3341.9,3341.8,0.59849]
[1736953867737,0.59854,3341.6,3341.5,0.59855]
[1736953867940,0.59858,3341.4,3341.3,3.2078]
[1736953868235,3.2078,3342.1,3341.3,3.2078]
[1736953868837,3.2078,3341.7,3341.2,1.488]
[1736953869040,1.49636,3341.6,3340.5,3.2078]
[1736953869338,0.59869,3340.8,3340.6,1.487]
[1736953869535,0.59869,3340.8,3340.7,0.59869]
[1736953869833,4.7043,3341.3,3340.5,3.2078]
[1736953869834,0.59872,3340.6,3340.5,3.2078]
[1736953870034,0.59877,3340.3,3340.2,1.487]
[1736953870626,3.2078,3340.8,3340.0,3.2078]
[1736953870932,3.2078,3340.8,3339.1,4.6948]
[1736953870933,0.59895,3339.4,3339.1,4.6948]
[1736953871135,1.49709,3340.0,3339.2,41.51957125]
[1736953871136,0.59896,3339.3,3339.2,41.51957125]
[1736953871439,0.59894,3339.4,3339.3,0.59895]
[1736953871635,0.59895,3339.3,3339.2,41.39896]
[1736953871829,3.2078,3339.9,3339.2,40.8]
[1736953872030,0.59895,3339.3,3339.2,40.8]
[1736953872237,0.59897,3339.2,3339.1,3.2078]
[1736953872536,0.59894,3339.4,3339.3,0.59895]
[1736953872730,3.2078,3339.9,3339.1,3.2078]
[1736953872930,3.2078,3339.9,3339.2,0.12054928]
[1736953873142,3.2078,3339.9,3339.3,0.12056889]
[1736953873338,0.59887,3339.8,3339.4,1.488]
[1736953873538,3.2259,3340.2,3339.4,1.488]
[1736953873736,0.59891,3339.6,3339.5,0.59892]
[1736953873935,0.59892,3339.5,3339.4,1.488]
[1736953874134,1.49713,3339.9,3339.1,1.488]
[1736953874438,0.59892,3339.5,3339.4,0.59892]
[1736953874634,0.59897,3339.2,3339.1,3.2078]
[1736953874837,0.59906,3338.7,3338.6,3.2078]
[1736953875148,0.59901,3339.0,3338.3,3.2078]
[1736953875443,0.59911,3338.4,3338.3,3.2078]
[1736953875637,0.5991,3338.5,3338.3,3.80693]
[1736953875838,0.59911,3338.4,3338.3,3.2078]
[1736953876140,2.09653,3339.0,3338.3,3.2078]
[1736953876342,3.2078,3339.1,3338.3,3.2078]
[1736953876543,0.5991,3338.5,3338.3,3.80693]
[1736953876742,0.59911,3338.4,3338.3,3.2078]
[1736953877041,0.59911,3338.4,3337.8,1.1161]
[1736953877042,0.5992,3337.9,3337.8,3.2078]
[1736953877245,3.2078,3338.7,3338.1,0.59916]
[1736953877434,3.32032269,3338.6,3338.5,0.59909]
[1736953877640,3.2078,3339.2,3338.2,4.6958]
[1736953877937,0.59902,3339.0,3338.7,0.59905]
[1736953878252,3.2078,3339.2,3338.9,0.59901]
[1736953878437,3.2078,3339.2,3338.2,5.8223]